fUSD/lending_fUSD_20240607
["ID","MTS","AMOUNT","RATE_DAILY","PERIOD"]
[328771821,1717781435034,-334.536975,0.00028342,2]
[328771822,1717781435044,-303.416118,0.00028342,2]
[328771824,1717781435054,-236.65244277,0.00028498,2]
[328771827,1717781435066,-400.0,0.0002862,2]
[328771828,1717781435077,-1213.664472,0.00028692,2]
[328771831,1717781435087,-655.455848,0.00028692,2]
[328771832,1717781435097,-334.536975,0.00028692,2]
[328771834,1717781435107,-303.416118,0.00028692,2]
[328771837,1717781435118,-152.0,0.00028695,3]
[328771839,1717781435129,-500.0,0.000289,2]
[328771841,1717781435139,-300.0,0.000289,10]
[328771843,1717781435149,-641.17155623,0.00029,2]
[328771845,1717781435162,-2180.89108332,0.00029,2]
[328771847,1717781435172,-600.0,0.00029,10]
[328771849,1717781435182,-1488.04610395,0.00029008,2]
[328771851,1717781435193,-1328.26,0.00029009,2]
[328771853,1717781435203,-13657.2,0.00029009,2]
[328771855,1717781435214,-1213.664472,0.00029042,2]
[328771857,1717781435226,-655.455848,0.00029042,2]
[328771858,1717781435236,-334.536975,0.00029042,2]
[328771860,1717781435247,-303.416118,0.00029042,2]
[328771862,1717781435258,-900.0,0.000291,10]
[328771865,1717781435269,-151.0,0.00029141,7]
[328771867,1717781435279,-530.82,0.00029178,2]
[328771869,1717781435297,-164.47,0.00029178,2]
[328771871,1717781435307,-526.07,0.00029178,2]
[328771873,1717781435317,-164.1,0.00029178,2]
[328771875,1717781435326,-526.07,0.00029178,2]
[328771876,1717781435336,-164.1,0.00029178,2]
[328771879,1717781435346,-164.1,0.00029178,2]
[328771881,1717781435355,-1300.0,0.000292,10]
[328771883,1717781435365,-459.69,0.00029202,2]
[328771885,1717781435376,-180.0,0.00029253,2]
[328771887,1717781435387,-1600.0,0.000293,10]
[328771889,1717781435396,-154.56666578,0.00029327,2]
[328771891,1717781435407,-348.0,0.00029356,2]
[328771893,1717781435416,-1213.664472,0.00029392,2]
[328771895,1717781435426,-655.455848,0.00029392,2]
[328771897,1717781435435,-334.536975,0.00029392,2]
[328771899,1717781435445,-303.416118,0.00029392,2]
[328771901,1717781435455,-300.0,0.000294,10]
[328771903,1717781435465,-446.38124697,0.000294,15]
[328771905,1717781435475,-243.52586897,0.00029404,15]
[328771907,1717781435485,-160.8684623,0.00029419,2]
[328771909,1717781435495,-151.26203115,0.0002944,2]
[328771911,1717781435504,-446.38124696,0.00029456,15]
[328771913,1717781435514,-243.52586894,0.00029459,15]
[328771915,1717781435523,-584.99,0.0002949,3]
[328771916,1717781435534,-14146.66427066,0.000295,2]
[328771919,1717781435547,-60918.19811835,0.000295,2]
[328771921,1717781435558,-1054.71998718,0.000295,2]
[328771940,1717781438196,-284.78,0.0002949,10]
[328771941,1717781438206,-233.47699894,0.000295,2]
[328771942,1717781438369,-17148.03142487,0.000295,2]
[328771943,1717781438379,-300.0,0.000295,10]
[328771944,1717781438390,-446.38124696,0.00029511,15]
[328771945,1717781438400,-243.52586894,0.00029514,15]
[328771946,1717781438412,-166.66666668,0.00029516,2]
[328771947,1717781438428,-157.22128429,0.00029521,2]
[328771948,1717781438441,-186.6334865,0.00029537,2]
[328771949,1717781438464,-446.38124696,0.00029567,15]
[328771950,1717781438483,-243.52586894,0.00029569,15]
[328771951,1717781438492,-300.0,0.000296,10]
[328771952,1717781438502,-151.85043176,0.00029611,2]
[328771953,1717781438512,-186.6334865,0.00029619,2]
[328771954,1717781438523,-446.38124696,0.00029622,15]
[328771955,1717781438533,-190.6322694,0.00029623,2]
[328771956,1717781438542,-157.22128429,0.00029623,2]
[328771957,1717781438553,-186.6334865,0.00029623,2]
[328771958,1717781438563,-243.52586894,0.00029624,15]
[328771959,1717781438574,-186.6334865,0.00029651,2]
[328771960,1717781438584,-2656.7452,0.00029663,2]
[328771961,1717781438594,-1165.0921,0.00029663,2]
[328771962,1717781438604,-484.5996,0.00029663,2]
[328771963,1717781438614,-446.38124696,0.00029678,15]
[328771964,1717781438624,-243.52586894,0.0002968,15]
[328771965,1717781438636,-381.50348138,0.00029688,2]
[328771966,1717781438646,-253.25540536,0.00029698,2]
[328771967,1717781438656,-161.12243825,0.00029699,4]
[328771968,1717781438666,-300.0,0.000297,10]
[328771969,1717781438676,-1000.0,0.000297,2]
[328771970,1717781438686,-349.31,0.0002971,2]
[328771971,1717781438696,-186.6334865,0.00029711,2]
[328771972,1717781438706,-163.4594036,0.00029716,2]
[328771973,1717781438715,-446.38124696,0.00029733,15]
[328771974,1717781438724,-243.52586894,0.00029735,15]
[328771975,1717781438734,-215.43247165,0.00029758,2]
[328771976,1717781438744,-500.0,0.0002976,2]
[328771977,1717781438754,-1000.0,0.00029763,2]
[328771978,1717781438764,-572.0463,0.00029763,2]
[328771979,1717781438774,-625.0781,0.00029763,2]
[328771980,1717781438784,-700.0,0.00029784,2]
[328771981,1717781438794,-446.38124696,0.00029789,15]
[328771982,1717781438803,-243.52586894,0.0002979,15]
[328771983,1717781438813,-500.0,0.00029799,2]
[328771984,1717781438822,-628.12201057,0.000298,10]
[328771985,1717781438835,-6.87798943,0.000298,10]
[328771986,1717781438846,-9159.893333,0.000298,2]
[328771987,1717781438855,-446.38124696,0.00029844,15]
[328771988,1717781438865,-243.52586894,0.00029845,15]
[328771989,1717781438875,-186.6334865,0.00029855,2]
[328771990,1717781438884,-7500.0,0.00029898,2]
[328771991,1717781438894,-417.30925497,0.00029899,2]
[328771992,1717781438904,-156.73632345,0.00029899,4]
[328771993,1717781438914,-500.0,0.00029899,4]
[328771994,1717781438923,-590.60900829,0.00029899,4]
[328771995,1717781438933,-156.06307796,0.00029899,4]
[328771996,1717781438943,-312.88266507,0.00029899,4]
[328771997,1717781438952,-510.81346688,0.00029899,4]
[328771998,1717781438962,-255.76430325,0.00029899,4]
[328771999,1717781438972,-11866.842589,0.000299,2]
[328772000,1717781438982,-686.1864,0.000299,2]
[328772001,1717781438992,-15837.2425,0.000299,2]
[328772002,1717781439001,-243.52586894,0.000299,15]
[328772003,1717781439011,-4296.74255856,0.000299,2]
[328772004,1717781439022,-446.38124696,0.000299,15]
[328772005,1717781439031,-150.77468738,0.000299,2]
[328772006,1717781439042,-1518.43667881,0.00029912,2]
[328772007,1717781439053,-154.697142,0.00029926,2]
[328772008,1717781439063,-151.26203115,0.00029934,2]
[328772009,1717781439074,-186.6334865,0.00029936,2]
[328772010,1717781439085,-150.5,0.0002997,15]
[328772011,1717781439095,-186.6334865,0.00029979,2]
[328772012,1717781439104,-243.0,0.0002998,5]
[328772013,1717781439114,-150.5,0.0002998,15]
[328772014,1717781439124,-151.26203115,0.00029981,2]
[328772015,1717781439134,-5131.88926836,0.00029986,2]
[328772016,1717781439147,-1200.0059874,0.00029986,2]
[328772017,1717781439172,-71.32674424,0.00029986,2]
[328772018,1717781439182,-931.49621902,0.00029986,2]
[328772019,1717781439194,-614.50378098,0.00029986,2]
[328772020,1717781439213,-566.61373565,0.00029986,2]
[328772021,1717781439242,-41.38626435,0.00029986,2]
[328772022,1717781439253,-503.11176106,0.00029986,2]
[328772023,1717781439266,-507.98323894,0.00029986,2]
[328772024,1717781439276,-493.840305,0.00029987,2]
[328772025,1717781439286,-413.11389606,0.00029987,2]
[328772026,1717781439300,-1885.80000005,0.00029987,2]
[328772027,1717781439313,-93259.94027839,0.00029987,2]
[328772028,1717781439323,-16046.26888,0.00029987,2]
[328772029,1717781439334,-152.15,0.00029988,2]
[328772030,1717781439345,-150.5,0.0002999,15]
[328772031,1717781439356,-324.31393848,0.00029995,2]
[328772032,1717781439367,-500.0,0.00029997,4]
[328772033,1717781439377,-500.0,0.00029997,4]
[328772034,1717781439387,-500.0,0.00029997,4]
[328772035,1717781439397,-540.88412533,0.00029997,4]
[328772036,1717781439407,-500.0,0.00029997,4]
[328772037,1717781439418,-187.19434987,0.00029997,4]
[328772038,1717781439429,-500.0,0.00029997,4]
[328772039,1717781439439,-500.0,0.00029997,4]
[328772040,1717781439450,-500.0,0.00029997,4]
[328772041,1717781439461,-500.0,0.00029997,4]
[328772042,1717781439471,-500.0,0.00029997,4]
[328772043,1717781439482,-506.10423746,0.00029997,4]
[328772044,1717781439493,-500.0,0.00029997,4]
[328772045,1717781439504,-500.0,0.00029997,4]
[328772046,1717781439514,-500.0,0.00029997,4]
[328772047,1717781439524,-500.0,0.00029997,4]
[328772048,1717781439535,-500.0,0.00029997,4]
[328772049,1717781439546,-500.0,0.00029997,4]
[328772050,1717781439557,-500.0,0.00029997,4]
[328772051,1717781439567,-544.31815774,0.00029997,4]
[328772052,1717781439578,-531.30462918,0.00029997,4]
[328772053,1717781439588,-364.1418127,0.00029997,4]
[328772054,1717781439598,-500.0,0.00029997,4]
[328772055,1717781439608,-597.45914961,0.00029997,4]
[328772056,1717781439618,-500.0,0.00029997,4]
[328772057,1717781439628,-500.0,0.00029997,4]
[328772058,1717781439640,-500.0,0.00029997,4]
[328772059,1717781439650,-500.0,0.00029997,4]
[328772060,1717781439660,-500.0,0.00029997,4]
[328772061,1717781439670,-500.0,0.00029997,4]
[328772062,1717781439680,-191.76849709,0.00029997,4]
[328772063,1717781439691,-500.0,0.00029997,4]
[328772064,1717781439701,-500.0,0.00029997,4]
[328772065,1717781439712,-507.99630804,0.00029997,4]
[328772066,1717781439722,-500.0,0.00029997,4]
[328772067,1717781439732,-647.35043161,0.00029997,4]
[328772068,1717781439743,-500.0,0.00029997,2]
[328772069,1717781439752,-500.0,0.00029997,2]
[328772070,1717781439762,-500.0,0.00029997,2]
[328772071,1717781439773,-568.64142668,0.00029997,4]
[328772072,1717781439783,-555.74996415,0.00029997,4]
[328772073,1717781439796,-507.07115474,0.00029997,4]
[328772074,1717781439806,-500.0,0.00029997,4]
[328772075,1717781439816,-500.0,0.00029997,4]
[328772076,1717781439826,-500.0,0.00029997,4]
[328772077,1717781439836,-277.51243975,0.00029997,4]
[328772078,1717781439847,-500.0,0.00029997,4]
[328772079,1717781439858,-500.0,0.00029997,4]
[328772080,1717781439868,-407.94467066,0.00029997,4]
[328772081,1717781439878,-500.0,0.00029997,4]
[328772082,1717781439889,-1121.46,0.00029997,4]
[328772083,1717781439900,-1121.46,0.00029997,4]
[328772084,1717781439910,-510.7123974,0.00029997,4]
[328772085,1717781439920,-1121.46,0.00029997,4]
[328772086,1717781439930,-500.0,0.00029997,4]
[328772087,1717781439940,-500.0,0.00029997,4]
[328772088,1717781439950,-513.53084185,0.00029997,4]
[328772089,1717781439960,-1243.02,0.00029997,4]
[328772090,1717781439970,-716.23458641,0.00029997,3]
[328772091,1717781439980,-1243.02,0.00029997,4]
[328772092,1717781439991,-1243.02,0.00029997,4]
[328772093,1717781440000,-500.0,0.00029997,4]
[328772094,1717781440011,-500.0,0.00029997,4]
[328772095,1717781440021,-500.0,0.00029997,4]
[328772096,1717781440031,-522.42316366,0.00029997,4]
[328772097,1717781440044,-1276.64,0.00029997,4]
[328772098,1717781440054,-1276.64,0.00029997,4]
[328772099,1717781440064,-500.0,0.00029997,4]
[328772100,1717781440074,-1276.64,0.00029997,4]
[328772101,1717781440083,-500.0,0.00029997,4]
[328772102,1717781440094,-500.0,0.00029997,4]
[328772103,1717781440103,-500.0,0.00029997,4]
[328772104,1717781440112,-500.0,0.00029997,4]
[328772105,1717781440122,-500.0,0.00029997,4]
[328772106,1717781440132,-500.0,0.00029997,4]
[328772107,1717781440141,-500.0,0.00029997,4]
[328772108,1717781440151,-500.0,0.00029997,4]
[328772109,1717781440161,-500.0,0.00029997,4]
[328772110,1717781440170,-530.81593131,0.00029997,4]
[328772111,1717781440180,-500.0,0.00029997,4]
[328772112,1717781440190,-500.0,0.00029997,4]
[328772113,1717781440199,-500.0,0.00029997,4]
[328772114,1717781440211,-741.56,0.00029997,4]
[328772115,1717781440226,-741.56,0.00029997,4]
[328772116,1717781440236,-741.56,0.00029997,4]
[328772117,1717781440246,-500.0,0.00029997,4]
[328772118,1717781440258,-500.0,0.00029997,4]
[328772119,1717781440267,-500.0,0.00029997,4]
[328772120,1717781440277,-943.24,0.00029997,4]
[328772121,1717781440289,-943.24,0.00029997,4]
[328772122,1717781440301,-943.24,0.00029997,4]
[328772123,1717781440312,-1337.2,0.00029997,4]
[328772124,1717781440323,-1337.2,0.00029997,4]
[328772125,1717781440333,-1337.2,0.00029997,4]
[328772126,1717781440343,-819.61,0.00029997,4]
[328772127,1717781440353,-819.61,0.00029997,4]
[328772128,1717781440362,-819.61,0.00029997,4]
[328772129,1717781440372,-500.0,0.00029997,4]
[328772130,1717781440382,-500.0,0.00029997,4]
[328772131,1717781440392,-500.0,0.00029997,4]
[328772132,1717781440404,-500.0,0.00029997,4]
[328772133,1717781440413,-500.0,0.00029997,4]
[328772134,1717781440424,-500.0,0.00029997,4]
[328772135,1717781440435,-500.0,0.00029997,4]
[328772136,1717781440445,-500.0,0.00029997,4]
[328772137,1717781440456,-500.0,0.00029997,4]
[328772138,1717781440465,-500.0,0.00029997,4]
[328772139,1717781440475,-500.0,0.00029997,4]
[328772140,1717781440484,-500.0,0.00029997,4]
[328772141,1717781440494,-500.0,0.00029997,4]
[328772142,1717781440504,-500.0,0.00029997,4]
[328772143,1717781440514,-500.0,0.00029997,4]
[328772144,1717781440524,-500.0,0.00029997,4]
[328772145,1717781440534,-500.0,0.00029997,4]
[328772146,1717781440544,-500.0,0.00029997,4]
[328772147,1717781440554,-500.0,0.00029997,4]
[328772148,1717781440564,-500.0,0.00029997,4]
[328772149,1717781440574,-500.0,0.00029997,4]
[328772150,1717781440584,-500.0,0.00029997,4]
[328772151,1717781440594,-500.0,0.00029997,4]
[328772152,1717781440604,-500.0,0.00029997,4]
[328772153,1717781440614,-500.0,0.00029997,4]
[328772154,1717781440623,-500.0,0.00029997,4]
[328772155,1717781440634,-500.0,0.00029997,4]
[328772156,1717781440644,-779.85,0.00029997,4]
[328772157,1717781440654,-779.85,0.00029997,4]
[328772158,1717781440664,-779.85,0.00029997,4]
[328772159,1717781440674,-500.0,0.00029997,4]
[328772160,1717781440685,-500.0,0.00029997,4]
[328772161,1717781440696,-500.0,0.00029997,4]
[328772162,1717781440706,-500.0,0.00029997,4]
[328772163,1717781440717,-500.0,0.00029997,4]
[328772164,1717781440728,-500.0,0.00029997,4]
[328772167,1717781440738,-500.0,0.00029997,4]
[328772170,1717781440749,-500.0,0.00029997,4]
[328772173,1717781440759,-500.0,0.00029997,4]
[328772176,1717781440770,-500.0,0.00029997,4]
[328772179,1717781440781,-500.0,0.00029997,4]
[328772181,1717781440793,-500.0,0.00029997,4]
[328772183,1717781440803,-500.0,0.00029997,4]
[328772184,1717781440813,-2594.51150784,0.00029997,2]
[328772185,1717781440823,-158.94995359,0.00029998,2]
[328772186,1717781440833,-200.0,0.00029998,2]
[328772187,1717781441000,-1898.91513286,0.00029998,2]
[328772188,1717781441011,-3776.24785904,0.00029998,2]
[328772189,1717781441021,-4166.39963549,0.00029998,2]
[328772190,1717781441031,-2066.84366251,0.00029998,2]
[328772191,1717781441045,-265.72578253,0.00029998,2]
[328772192,1717781441055,-241.25864268,0.00029998,2]
[328772193,1717781441066,-249.26235059,0.00029998,2]
[328772194,1717781441076,-28233.28800785,0.00029998,2]
[328772195,1717781441086,-536.23096057,0.00029998,2]
[328772196,1717781441096,-624.86771419,0.00029998,2]
[328772197,1717781441107,-473.12237669,0.00029998,2]
[328772198,1717781441118,-7529.62685189,0.00029998,2]
[328772199,1717781441127,-59196.69304672,0.00029998,2]
[328772200,1717781441340,-3162.122,0.000294,2]
[328772201,1717781441350,-500.0,0.00029997,4]
[328772202,1717781441360,-135.87799996,0.00029997,4]
[328772203,1717781441372,-364.12200004,0.00029997,4]
[328772204,1717781441383,-500.0,0.00029997,4]
[328772205,1717781441393,-231606.08858234,0.00029998,2]
[328772206,1717781441403,-6124.12140416,0.00029998,2]
[328772207,1717781441414,-6259.73033977,0.00029998,2]
[328772208,1717781441424,-7539.93986431,0.00029998,2]
[328772209,1717781441435,-4289.88630303,0.00029998,2]
[328772210,1717781441444,-2193.53962537,0.00029998,2]
[328772211,1717781441454,-327.87677653,0.00029998,2]
[328772212,1717781441464,-155.0,0.00029998,2]
[328772213,1717781441474,-537.53978765,0.00029998,2]
[328772214,1717781441485,-3064.39202491,0.00029998,2]
[328772215,1717781441495,-156.53865947,0.00029998,2]
[328772216,1717781441505,-268.60222202,0.00029998,2]
[328772217,1717781441515,-1805.41293491,0.00029998,2]
[328772218,1717781441525,-205.94174335,0.00029998,2]
[328772219,1717781441536,-411.12616502,0.00029998,2]
[328772220,1717781441546,-327.03263673,0.00029998,2]
[328772221,1717781441556,-1061.23712426,0.00029998,2]
[328772222,1717781441567,-155.0,0.00029998,2]
[328772223,1717781441577,-500.0,0.00029998,4]
[328772224,1717781441586,-515.88111183,0.00029998,4]
[328772225,1717781441596,-500.0,0.00029998,4]
[328772226,1717781441607,-500.0,0.00029998,4]
[328772227,1717781441617,-506.17922115,0.00029998,2]
[328772228,1717781441627,-1247.36037009,0.00029998,2]
[328772229,1717781441636,-500.0,0.00029998,4]
[328772230,1717781441646,-1121.46,0.00029998,4]
[328772231,1717781441656,-1243.02,0.00029998,4]
[328772232,1717781441667,-1276.64,0.00029998,4]
[328772233,1717781441677,-500.0,0.00029998,4]
[328772234,1717781441687,-388.49585678,0.00029998,4]
[328772235,1717781441697,-500.0,0.00029998,4]
[328772236,1717781441707,-741.56,0.00029998,4]
[328772237,1717781441717,-500.0,0.00029998,4]
[328772238,1717781441727,-943.24,0.00029998,4]
[328772239,1717781441736,-1337.2,0.00029998,4]
[328772240,1717781441745,-819.61,0.00029998,4]
[328772241,1717781441755,-500.0,0.00029998,4]
[328772242,1717781441765,-500.0,0.00029998,4]
[328772243,1717781441775,-500.0,0.00029998,4]
[328772244,1717781441788,-500.0,0.00029998,4]
[328772245,1717781441798,-500.0,0.00029998,4]
[328772246,1717781441807,-500.0,0.00029998,4]
[328772247,1717781441817,-500.0,0.00029998,4]
[328772248,1717781441826,-500.0,0.00029998,4]
[328772249,1717781441835,-500.0,0.00029998,4]
[328772250,1717781441845,-779.85,0.00029998,4]
[328772251,1717781441854,-500.0,0.00029998,4]
[328772252,1717781441863,-500.0,0.00029998,4]
[328772253,1717781441872,-500.0,0.00029998,4]
[328772254,1717781441882,-500.0,0.00029998,4]
[328772255,1717781441892,-2177.0,0.00029998,2]
[328772256,1717781441901,-810.04645528,0.00029999,2]
[328772257,1717781441911,-500.0,0.00029999,4]
[328772258,1717781441921,-500.0,0.00029999,4]
[328772259,1717781441930,-509.99234397,0.00029999,4]
[328772260,1717781441940,-500.0,0.00029999,4]
[328772261,1717781441949,-500.0,0.00029999,4]
[328772262,1717781441959,-500.0,0.00029999,4]
[328772263,1717781441968,-198.11718035,0.00029999,4]
[328772264,1717781441978,-500.0,0.00029999,4]
[328772265,1717781441988,-500.0,0.00029999,4]
[328772266,1717781441997,-500.0,0.00029999,4]
[328772267,1717781442007,-500.0,0.00029999,4]
[328772268,1717781442017,-500.0,0.00029999,4]
[328772269,1717781442026,-345.80892081,0.00029999,4]
[328772270,1717781442037,-500.0,0.00029999,4]
[328772271,1717781442046,-500.0,0.00029999,4]
[328772272,1717781442056,-500.0,0.00029999,4]
[328772273,1717781442065,-500.0,0.00029999,4]
[328772274,1717781442075,-342.54140288,0.00029999,4]
[328772275,1717781442084,-1121.46,0.00029999,4]
[328772276,1717781442095,-1121.46,0.00029999,4]
[328772277,1717781442104,-1121.46,0.00029999,4]
[328772278,1717781442113,-1121.46,0.00029999,4]
[328772279,1717781442123,-1121.46,0.00029999,4]
[328772280,1717781442132,-1121.46,0.00029999,4]
[328772281,1717781442142,-1121.46,0.00029999,4]
[328772282,1717781442152,-1121.46,0.00029999,4]
[328772283,1717781442161,-1121.46,0.00029999,4]
[328772284,1717781442171,-1121.46,0.00029999,4]
[328772285,1717781442180,-1121.46,0.00029999,4]
[328772286,1717781442190,-1121.46,0.00029999,4]
[328772287,1717781442199,-1121.46,0.00029999,4]
[328772288,1717781442212,-1121.46,0.00029999,4]
[328772289,1717781442222,-1121.46,0.00029999,4]
[328772290,1717781442232,-1121.46,0.00029999,4]
[328772291,1717781442243,-1121.46,0.00029999,4]
[328772292,1717781442253,-1121.46,0.00029999,4]
[328772293,1717781442263,-1121.46,0.00029999,4]
[328772294,1717781442273,-1121.5775,0.00029999,4]
[328772295,1717781442283,-1243.02,0.00029999,4]
[328772296,1717781442295,-1243.02,0.00029999,4]
[328772297,1717781442305,-1243.02,0.00029999,4]
[328772298,1717781442315,-1243.02,0.00029999,4]
[328772299,1717781442325,-1243.02,0.00029999,4]
[328772300,1717781442335,-1243.02,0.00029999,4]
[328772301,1717781442345,-1243.02,0.00029999,4]
[328772302,1717781442355,-1243.02,0.00029999,4]
[328772303,1717781442364,-1243.02,0.00029999,4]
[328772304,1717781442375,-1243.02,0.00029999,4]
[328772305,1717781442385,-1243.02,0.00029999,4]
[328772306,1717781442394,-1243.02,0.00029999,4]
[328772307,1717781442404,-1243.02,0.00029999,4]
[328772308,1717781442414,-1243.02,0.00029999,4]
[328772309,1717781442423,-1243.02,0.00029999,4]
[328772310,1717781442432,-1243.02,0.00029999,4]
[328772311,1717781442442,-1243.02,0.00029999,4]
[328772312,1717781442452,-1243.02,0.00029999,4]
[328772313,1717781442461,-1243.02,0.00029999,4]
[328772314,1717781442471,-1243.05214134,0.00029999,4]
[328772315,1717781442481,-1276.64,0.00029999,4]
[328772316,1717781442491,-1276.64,0.00029999,4]
[328772317,1717781442502,-500.0,0.00029999,4]
[328772318,1717781442511,-1276.64,0.00029999,4]
[328772319,1717781442521,-500.0,0.00029999,4]
[328772320,1717781442530,-1276.64,0.00029999,4]
[328772321,1717781442541,-500.0,0.00029999,4]
[328772322,1717781442551,-1276.64,0.00029999,4]
[328772323,1717781442562,-500.0,0.00029999,4]
[328772324,1717781442571,-1276.64,0.00029999,4]
[328772325,1717781442581,-1276.64,0.00029999,4]
[328772326,1717781442591,-500.0,0.00029999,4]
[328772327,1717781442600,-1276.64,0.00029999,4]
[328772328,1717781442611,-500.0,0.00029999,4]
[328772329,1717781442620,-1276.64,0.00029999,4]
[328772330,1717781442631,-500.0,0.00029999,4]
[328772331,1717781442641,-1276.64,0.00029999,4]
[328772332,1717781442650,-500.0,0.00029999,4]
[328772333,1717781442661,-1276.64,0.00029999,4]
[328772334,1717781442671,-500.0,0.00029999,4]
[328772335,1717781442681,-1276.64,0.00029999,4]
[328772336,1717781442690,-500.0,0.00029999,4]
[328772337,1717781442700,-1276.64,0.00029999,4]
[328772338,1717781442709,-500.0,0.00029999,4]
[328772339,1717781442719,-1276.64,0.00029999,4]
[328772341,1717781442729,-500.0,0.00029999,4]
[328772343,1717781442739,-500.0,0.00029999,4]
[328772344,1717781442748,-1276.64,0.00029999,4]
[328772345,1717781442758,-500.0,0.00029999,4]
[328772346,1717781442767,-1276.64,0.00029999,4]
[328772347,1717781442777,-1276.64,0.00029999,4]
[328772348,1717781442788,-500.0,0.00029999,4]
[328772349,1717781442799,-633.74957769,0.00029999,4]
[328772350,1717781442809,-1276.64,0.00029999,4]
[328772351,1717781442819,-1276.64,0.00029999,4]
[328772353,1717781442829,-1276.76501547,0.00029999,4]
[328772355,1717781442839,-500.0,0.00029999,4]
[328772357,1717781442849,-500.0,0.00029999,4]
[328772359,1717781442859,-500.0,0.00029999,4]
[328772361,1717781442870,-500.0,0.00029999,4]
[328772363,1717781442881,-500.0,0.00029999,4]
[328772365,1717781442891,-500.0,0.00029999,4]
[328772367,1717781442901,-500.0,0.00029999,4]
[328772369,1717781442911,-500.0,0.00029999,4]
[328772371,1717781442922,-500.0,0.00029999,4]
[328772373,1717781442931,-500.0,0.00029999,4]
[328772375,1717781442941,-500.0,0.00029999,4]
[328772377,1717781442951,-326.18009427,0.00029999,4]
[328772379,1717781442962,-741.56,0.00029999,4]
[328772381,1717781442972,-741.56,0.00029999,4]
[328772383,1717781442982,-741.56,0.00029999,4]
[328772385,1717781442992,-741.56,0.00029999,4]
[328772387,1717781443002,-741.56,0.00029999,4]
[328772390,1717781443012,-741.56,0.00029999,4]
[328772392,1717781443022,-741.56,0.00029999,4]
[328772394,1717781443031,-741.56,0.00029999,4]
[328772396,1717781443044,-741.56,0.00029999,4]
[328772398,1717781443054,-741.56,0.00029999,4]
[328772400,1717781443063,-741.56,0.00029999,4]
[328772402,1717781443075,-741.56,0.00029999,4]
[328772404,1717781443085,-741.56,0.00029999,4]
[328772406,1717781443095,-741.56,0.00029999,4]
[328772407,1717781443105,-439.22448623,0.00029999,4]
[328772408,1717781443116,-741.56,0.00029999,4]
[328772409,1717781443126,-741.56,0.00029999,4]
[328772410,1717781443136,-741.56,0.00029999,4]
[328772411,1717781443146,-741.56,0.00029999,4]
[328772412,1717781443156,-741.56,0.00029999,4]
[328772413,1717781443166,-943.24,0.00029999,4]
[328772414,1717781443176,-741.5761162,0.00029999,4]
[328772415,1717781443186,-943.24,0.00029999,4]
[328772416,1717781443197,-943.24,0.00029999,4]
[328772417,1717781443208,-943.24,0.00029999,4]
[328772418,1717781443221,-943.24,0.00029999,4]
[328772419,1717781443231,-943.24,0.00029999,4]
[328772420,1717781443241,-943.24,0.00029999,4]
[328772421,1717781443251,-943.24,0.00029999,4]
[328772422,1717781443262,-943.24,0.00029999,4]
[328772423,1717781443272,-1337.2,0.00029999,4]
[328772424,1717781443282,-943.24,0.00029999,4]
[328772425,1717781443295,-1337.2,0.00029999,4]
[328772426,1717781443305,-943.24,0.00029999,4]
[328772427,1717781443315,-1337.2,0.00029999,4]
[328772428,1717781443326,-943.24,0.00029999,4]
[328772429,1717781443336,-1337.2,0.00029999,4]
[328772430,1717781443346,-1337.2,0.00029999,4]